fUSD/lending_fUSD_20260617
["ID","MTS","AMOUNT","RATE_DAILY","PERIOD"]
[425256950,1781634716000,-2099.548395,0.000364,30]
[425256943,1781634716000,-2644.187254,0.000364,30]
[425256939,1781634716000,-456.353707,0.000364,30]
[425256938,1781634716000,-171.185326,0.000364,30]
[425256941,1781634716000,-2014.348002,0.000364,30]
[425256940,1781634716000,-1117.328852,0.000364,30]
[425256942,1781634716000,-169.723411,0.000364,30]
[425256937,1781634716000,-1999.448705,0.000364,30]
[425256946,1781634716000,-171.185326,0.000364,30]
[425256935,1781634716000,-2644.187253,0.000364,30]
[425256921,1781634716000,-283.522879,0.000364,30]
[425256923,1781634716000,-2014.348002,0.000364,30]
[425256922,1781634716000,-456.353712,0.000364,30]
[425256926,1781634716000,-275.757673,0.000364,30]
[425256924,1781634716000,-169.723403,0.000364,30]
[425256936,1781634716000,-275.757673,0.000364,30]
[425256927,1781634716000,-151.0,0.000364,30]
[425256929,1781634716000,-2623.423274,0.000364,30]
[425256925,1781634716000,-2644.187253,0.000364,30]
[425256931,1781634716000,-1095.397881,0.000364,30]
[425256930,1781634716000,-1999.448705,0.000364,30]
[425256932,1781634716000,-456.353712,0.000364,30]
[425256934,1781634716000,-169.723403,0.000364,30]
[425256933,1781634716000,-2014.348002,0.000364,30]
[425256928,1781634716000,-283.52288,0.000364,30]
[425256966,1781634717000,-171.185333,0.000364,30]
[425256971,1781634717000,-1005.808885,0.000364,30]
[425256967,1781634717000,-254.628751,0.000364,30]
[425256970,1781634717000,-2099.548395,0.000364,30]
[425256977,1781634717000,-254.628751,0.000364,30]
[425256975,1781634717000,-157.503185,0.000364,30]
[425256974,1781634717000,-233.788377,0.000364,30]
[425256984,1781634717000,-517.131784,0.000364,30]
[425256983,1781634717000,-233.788376,0.000364,30]
[425256969,1781634717000,-151.0,0.000364,30]
[425256972,1781634717000,-1741.460222,0.000364,30]
[425256968,1781634717000,-1117.328862,0.000364,30]
[425256958,1781634717000,-2099.548395,0.000364,30]
[425256965,1781634717000,-517.131784,0.000364,30]
[425256963,1781634717000,-3998.243273,0.000364,30]
[425256959,1781634717000,-1117.328852,0.000364,30]
[425256961,1781634717000,-1005.808885,0.000364,30]
[425256962,1781634717000,-1741.460222,0.000364,30]
[425256960,1781634717000,-157.50318,0.000364,30]
[425256957,1781634717000,-171.185326,0.000364,30]
[425256956,1781634717000,-233.788377,0.000364,30]
[425256954,1781634717000,-1741.460222,0.000364,30]
[425256955,1781634717000,-3998.243273,0.000364,30]
[425256952,1781634717000,-157.50318,0.000364,30]
[425256953,1781634717000,-1005.808885,0.000364,30]
[425256979,1781634717000,-2099.548392,0.000364,30]
[425256964,1781634717000,-233.788377,0.000364,30]
[425256980,1781634717000,-1005.808885,0.000364,30]
[425256973,1781634717000,-3998.243273,0.000364,30]
[425256976,1781634717000,-517.131784,0.000364,30]
[425256978,1781634717000,-1545.442837,0.000364,30]
[425257009,1781634717000,-1219.02061837,0.000364,30]
[425257006,1781634717000,-1162.631101,0.000364,30]
[425257007,1781634717000,-3189.322519,0.000364,30]
[425257003,1781634717000,-1162.631104,0.000364,30]
[425257001,1781634717000,-1438.69844,0.000364,30]
[425257005,1781634717000,-1162.631104,0.000364,30]
[425256996,1781634717000,-344.70821,0.000364,30]
[425257004,1781634717000,-152.549952,0.000364,30]
[425257002,1781634717000,-152.549959,0.000364,30]
[425256998,1781634717000,-152.549959,0.000364,30]
[425256999,1781634717000,-344.70821,0.000364,30]
[425257000,1781634717000,-1162.631104,0.000364,30]
[425257008,1781634717000,-1194.952034,0.000364,30]
[425256995,1781634717000,-152.549959,0.000364,30]
[425256997,1781634717000,-1438.698432,0.000364,30]
[425256985,1781634717000,-254.628751,0.000364,30]
[425256987,1781634717000,-517.131789,0.000364,30]
[425256994,1781634717000,-1438.698432,0.000364,30]
[425256990,1781634717000,-1545.442837,0.000364,30]
[425256981,1781634717000,-1741.460212,0.000364,30]
[425256988,1781634717000,-344.70821,0.000364,30]
[425256991,1781634717000,-1438.698432,0.000364,30]
[425256992,1781634717000,-344.70821,0.000364,30]
[425256982,1781634717000,-3998.243279,0.000364,30]
[425256993,1781634717000,-1545.44283,0.000364,30]
[425256989,1781634717000,-254.628744,0.000364,30]
[425256986,1781634717000,-1545.442837,0.000364,30]
[425257038,1781634719000,-948.651354,0.000364,30]
[425257049,1781634719000,-4573.124125,0.000364,30]
[425257037,1781634719000,-151.0,0.000364,30]
[425257040,1781634719000,-151.0,0.000364,3]
[425257042,1781634719000,-750.075801,0.000364,30]
[425257041,1781634719000,-1088.650014,0.000364,30]
[425257044,1781634719000,-4573.124125,0.000364,30]
[425257046,1781634719000,-3342.977326,0.000364,30]
[425257043,1781634719000,-948.65135,0.000364,30]
[425257047,1781634719000,-1088.650014,0.000364,30]
[425257039,1781634719000,-750.075801,0.000364,30]
[425257062,1781634719000,-1357.542871,0.000364,30]
[425257045,1781634719000,-151.0,0.000364,3]
[425257051,1781634719000,-770.514652,0.000364,30]
[425257050,1781634719000,-750.075801,0.000364,30]
[425257052,1781634719000,-3342.977326,0.000364,30]
[425257063,1781634719000,-3813.815129,0.000364,30]
[425257061,1781634719000,-3342.977326,0.000364,30]
[425257056,1781634719000,-750.075808,0.000364,30]
[425257059,1781634719000,-993.360127,0.000364,30]
[425257053,1781634719000,-1357.542871,0.000364,30]
[425257034,1781634719000,-151.0,0.000364,30]
[425257048,1781634719000,-993.360127,0.000364,30]
[425257030,1781634719000,-878.200529,0.000364,30]
[425257026,1781634719000,-632.304609,0.000364,30]
[425257035,1781634719000,-3653.519002,0.000364,30]
[425257011,1781634719000,-632.3046,0.000364,30]
[425257013,1781634719000,-878.20053,0.000364,30]
[425257014,1781634719000,-3189.322519,0.000364,30]
[425257015,1781634719000,-632.3046,0.000364,30]
[425257010,1781634719000,-1970.30190063,0.000364,30]
[425257012,1781634719000,-1194.952034,0.000364,30]
[425257016,1781634719000,-1194.952034,0.000364,30]
[425257017,1781634719000,-999.141507,0.000364,30]
[425257018,1781634719000,-878.20053,0.000364,30]
[425257021,1781634719000,-632.3046,0.000364,30]
[425257029,1781634719000,-3653.519003,0.000364,30]
[425257019,1781634719000,-3189.322512,0.000364,30]
[425257020,1781634719000,-3653.519003,0.000364,30]
[425257023,1781634719000,-999.141507,0.000364,30]
[425257022,1781634719000,-1194.95204,0.000364,30]
[425257024,1781634719000,-878.20053,0.000364,30]
[425257027,1781634719000,-151.0,0.000364,30]
[425257033,1781634719000,-999.141515,0.000364,30]
[425257031,1781634719000,-948.651354,0.000364,30]
[425257032,1781634719000,-151.0,0.000364,30]
[425257028,1781634719000,-999.141507,0.000364,30]
[425257036,1781634719000,-948.651354,0.000364,30]
[425257025,1781634719000,-3653.519003,0.000364,30]
[425257054,1781634719000,-3813.815129,0.000364,30]
[425257060,1781634719000,-770.514652,0.000364,30]
[425257055,1781634719000,-1088.650014,0.000364,30]
[425257088,1781634719000,-589.381274,0.000364,30]
[425257091,1781634719000,-3324.68781,0.000364,30]
[425257101,1781634719000,-263.756437,0.000364,30]
[425257093,1781634719000,-660.44667899,0.000364,30]
[425257090,1781634719000,-263.75643,0.000364,30]
[425257092,1781634719000,-1000.536956,0.000364,30]
[425257096,1781634719000,-263.75643,0.000364,30]
[425257097,1781634719000,-3324.6878,0.000364,30]
[425257100,1781634719000,-589.381265,0.000364,30]
[425257099,1781634719000,-151.0,0.000364,30]
[425257084,1781634719000,-1000.536956,0.000364,30]
[425257095,1781634719000,-589.381274,0.000364,30]
[425257103,1781634719000,-2917.101576,0.000364,30]
[425257107,1781634719000,-204.366753,0.000364,30]
[425257104,1781634719000,-238.920172,0.000364,30]
[425257102,1781634719000,-1000.53695045,0.000364,30]
[425257105,1781634719000,-2917.101576,0.000364,30]
[425257109,1781634719000,-326.137243,0.000364,30]
[425257110,1781634719000,-529.999072,0.000364,30]
[425257106,1781634719000,-238.920172,0.000364,30]
[425257108,1781634719000,-1495.172888,0.000364,30]
[425257058,1781634719000,-4573.124125,0.000364,30]
[425257098,1781634719000,-1000.536956,0.000364,30]
[425257081,1781634719000,-263.75643,0.000364,30]
[425257094,1781634719000,-179.317273,0.000364,30]
[425257086,1781634719000,-390.824508,0.000364,30]
[425257083,1781634719000,-3813.81512666,0.000364,30]
[425257057,1781634719000,-390.824516,0.000364,30]
[425257065,1781634719000,-390.824516,0.000364,30]
[425257076,1781634719000,-770.514655,0.000364,30]
[425257075,1781634719000,-3324.68781,0.000364,30]
[425257064,1781634719000,-1088.650021,0.000364,30]
[425257066,1781634719000,-770.514652,0.000364,30]
[425257071,1781634719000,-3342.977331,0.000364,30]
[425257077,1781634719000,-660.446682,0.000364,30]
[425257068,1781634719000,-660.446682,0.000364,30]
[425257067,1781634719000,-4573.124116,0.000364,30]
[425257070,1781634719000,-179.317282,0.000364,30]
[425257069,1781634719000,-993.360127,0.000364,30]
[425257072,1781634719000,-1357.542871,0.000364,30]
[425257073,1781634719000,-3813.815129,0.000364,30]
[425257074,1781634719000,-390.824516,0.000364,30]
[425257078,1781634719000,-993.360127,0.000364,30]
[425257082,1781634719000,-1357.542871,0.000364,30]
[425257089,1781634719000,-179.317282,0.000364,30]
[425257087,1781634719000,-660.446682,0.000364,30]
[425257080,1781634719000,-179.317282,0.000364,30]
[425257085,1781634719000,-3324.68781,0.000364,30]
[425257079,1781634719000,-589.381274,0.000364,30]
[425257152,1781634720000,-198.081191,0.000364,30]
[425257150,1781634720000,-692.07998,0.000364,30]
[425257149,1781634720000,-399.18849,0.000364,7]
[425257145,1781634720000,-399.18849,0.000364,7]
[425257148,1781634720000,-388.413835,0.000364,30]
[425257142,1781634720000,-388.413835,0.000364,30]
[425257146,1781634720000,-931.731581,0.000364,30]
[425257144,1781634720000,-692.07998,0.000364,30]
[425257147,1781634720000,-198.081191,0.000364,30]
[425257140,1781634720000,-168.020502,0.000364,30]
[425257153,1781634720000,-388.413835,0.000364,30]
[425257143,1781634720000,-161.76325,0.000364,30]
[425257154,1781634720000,-1350.019466,0.000364,30]
[425257165,1781634720000,-198.081199,0.000364,30]
[425257160,1781634720000,-388.413827,0.000364,30]
[425257159,1781634720000,-1997.775072,0.000364,30]
[425257157,1781634720000,-692.079975,0.000364,30]
[425257158,1781634720000,-198.081191,0.000364,30]
[425257155,1781634720000,-399.18849,0.000364,7]
[425257156,1781634720000,-931.731581,0.000364,30]
[425257161,1781634720000,-204.0,0.000364,120]
[425257173,1781634720000,-2301.506184,0.000364,30]
[425257174,1781634720000,-2721.127501,0.000364,30]
[425257163,1781634720000,-399.188491,0.000364,7]
[425257164,1781634720000,-931.73158,0.000364,30]
[425257141,1781634720000,-3101.713156,0.000364,30]
[425257162,1781634720000,-1350.019466,0.000364,30]
[425257151,1781634720000,-931.731581,0.000364,30]
[425257116,1781634720000,-238.92017,0.000364,30]
[425257131,1781634720000,-1329.178592,0.000364,30]
[425257113,1781634720000,-1495.172888,0.000364,30]
[425257114,1781634720000,-326.137243,0.000364,30]
[425257111,1781634720000,-2917.101576,0.000364,30]
[425257112,1781634720000,-238.920172,0.000364,30]
[425257171,1781634720000,-3101.713154,0.000364,30]
[425257115,1781634720000,-529.999072,0.000364,30]
[425257126,1781634720000,-204.366746,0.000364,30]
[425257127,1781634720000,-1849.434566,0.000364,7]
[425257117,1781634720000,-2917.101569,0.000364,30]
[425257118,1781634720000,-204.366753,0.000364,30]
[425257119,1781634720000,-1495.172888,0.000364,30]
[425257122,1781634720000,-204.366753,0.000364,30]
[425257121,1781634720000,-529.999072,0.000364,30]
[425257125,1781634720000,-529.999073,0.000364,30]
[425257120,1781634720000,-326.137243,0.000364,30]
[425257123,1781634720000,-1495.172883,0.000364,30]
[425257124,1781634720000,-326.137242,0.000364,30]
[425257128,1781634720000,-1329.178592,0.000364,30]
[425257130,1781634720000,-1849.434566,0.000364,7]
[425257137,1781634720000,-1849.434566,0.000364,7]
[425257132,1781634720000,-168.02051,0.000364,30]
[425257134,1781634720000,-1329.178592,0.000364,30]
[425257136,1781634720000,-3101.713156,0.000364,30]
[425257133,1781634720000,-1849.434566,0.000364,7]
[425257129,1781634720000,-168.02051,0.000364,30]
[425257139,1781634720000,-692.07998,0.000364,30]
[425257135,1781634720000,-168.02051,0.000364,30]
[425257138,1781634720000,-1329.178582,0.000364,30]
[425257167,1781634720000,-3101.713156,0.000364,30]
[425257172,1781634720000,-1350.019456,0.000364,30]
[425257170,1781634720000,-1997.775072,0.000364,30]
[425257211,1781634720000,-1382.607938,0.000364,30]
[425257205,1781634720000,-411.575731,0.000364,30]
[425257212,1781634720000,-1289.520223,0.000364,30]
[425257200,1781634720000,-1692.961456,0.000364,30]
[425257203,1781634720000,-1382.607938,0.000364,30]
[425257209,1781634720000,-3083.66621,0.000364,30]
[425257206,1781634720000,-1692.961456,0.000364,30]
[425257208,1781634720000,-1456.594552,0.000364,30]
[425257207,1781634720000,-1661.404128,0.000364,30]
[425257213,1781634720000,-411.575731,0.000364,30]
[425257216,1781634720000,-1000.0,0.0003641,120]
[425257214,1781634720000,-1692.961456,0.000364,30]
[425257215,1781634720000,-410.0,0.00036409,2]
[425257217,1781634720000,-158.25033973,0.00036412,3]
[425257223,1781634720000,-150.0,0.00036441,120]
[425257220,1781634720000,-350.0,0.00036437,2]
[425257218,1781634720000,-5000.0,0.00036423,10]
[425257219,1781634720000,-257.0,0.00036431,120]
[425257221,1781634720000,-253.05,0.00036438,120]
[425257222,1781634720000,-1000.0,0.00036438,120]
[425257224,1781634720000,-5000.0,0.00036451,10]
[425257228,1781634720000,-158.364973,0.00036497,12]
[425257225,1781634720000,-1000.0,0.00036465,120]
[425257227,1781634720000,-1000.0,0.00036493,120]
[425257226,1781634720000,-560.72678,0.0003648,120]
[425257229,1781634720000,-800.0,0.000365,7]
[425257166,1781634720000,-1997.775072,0.000364,30]
[425257202,1781634720000,-158.474782,0.000364,30]
[425257204,1781634720000,-1289.520228,0.000364,30]
[425257230,1781634720000,-500.0,0.000365,120]
[425257201,1781634720000,-3083.666204,0.000364,30]
[425257210,1781634720000,-158.474782,0.000364,30]
[425257169,1781634720000,-2721.127501,0.000364,30]
[425257175,1781634720000,-1997.775078,0.000364,30]
[425257178,1781634720000,-196.575907,0.000364,30]
[425257180,1781634720000,-1318.157382,0.000364,30]
[425257179,1781634720000,-151.0,0.000364,30]
[425257177,1781634720000,-2721.127501,0.000364,30]
[425257176,1781634720000,-1318.157382,0.000364,30]
[425257181,1781634720000,-2721.1275,0.000364,30]
[425257182,1781634720000,-196.575907,0.000364,30]
[425257184,1781634720000,-1661.404131,0.000364,30]
[425257187,1781634720000,-3083.666204,0.000364,30]
[425257183,1781634720000,-151.0,0.000364,30]
[425257168,1781634720000,-1350.019466,0.000364,30]
[425257186,1781634720000,-1318.157382,0.000364,30]
[425257185,1781634720000,-2301.506184,0.000364,30]
[425257193,1781634720000,-1318.157383,0.000364,30]
[425257192,1781634720000,-1289.520228,0.000364,30]
[425257197,1781634720000,-411.575731,0.000364,30]
[425257189,1781634720000,-232.492155,0.000364,30]
[425257196,1781634720000,-2301.506187,0.000364,30]
[425257190,1781634720000,-2301.506184,0.000364,30]
[425257199,1781634720000,-1289.520228,0.000364,30]
[425257188,1781634720000,-196.575907,0.000364,30]
[425257195,1781634720000,-196.575898,0.000364,30]
[425257198,1781634720000,-1661.404131,0.000364,30]
[425257194,1781634720000,-3083.666204,0.000364,30]
[425257191,1781634720000,-1661.404131,0.000364,30]
[425257267,1781634721000,-1000.0,0.00036739,120]
[425257282,1781634721000,-245.943395,0.00036766,30]
[425257272,1781634721000,-151.50000001,0.00036765,7]
[425257269,1781634721000,-723.0,0.00036748,12]
[425257260,1781634721000,-1000.0,0.000367,2]
[425257265,1781634721000,-3369.17908535,0.00036729,30]
[425257266,1781634721000,-1672.09,0.00036734,10]
[425257270,1781634721000,-3689.57,0.00036752,10]
[425257264,1781634721000,-1000.0,0.00036712,120]
[425257271,1781634721000,-150.0,0.00036756,2]
[425257263,1781634721000,-500.0,0.00036712,120]
[425257268,1781634721000,-385.53,0.00036744,120]
[425257273,1781634721000,-25000.0,0.00036766,10]
[425257277,1781634721000,-151.0,0.00036766,10]
[425257278,1781634721000,-405.225153,0.00036766,30]
[425257276,1781634721000,-405.225153,0.00036766,30]
[425257275,1781634721000,-151.0,0.00036766,10]
[425257281,1781634721000,-405.225153,0.00036766,30]
[425257279,1781634721000,-245.943395,0.00036766,30]
[425257280,1781634721000,-224.625137,0.00036766,10]
[425257283,1781634721000,-405.22515,0.00036766,30]
[425257287,1781634721000,-245.943389,0.00036766,30]
[425257285,1781634721000,-246.847888,0.00036766,30]
[425257293,1781634721000,-246.847888,0.00036766,30]
[425257292,1781634721000,-151.0,0.00036766,30]
[425257262,1781634721000,-745.58492606,0.00036712,120]
[425257284,1781634721000,-245.943395,0.00036766,30]
[425257274,1781634721000,-151.0,0.00036766,30]
[425257261,1781634721000,-150.0,0.00036711,30]
[425257244,1781634721000,-702.87,0.00036607,10]
[425257255,1781634721000,-151.5,0.00036678,7]
[425257288,1781634721000,-151.0,0.00036766,30]
[425257234,1781634721000,-472.87,0.00036511,7]
[425257233,1781634721000,-1128.3,0.00036511,10]
[425257231,1781634721000,-800.0,0.000365,7]
[425257232,1781634721000,-45000.0,0.000365,14]
[425257235,1781634721000,-1000.0,0.0003652,120]
[425257236,1781634721000,-1000.0,0.00036547,120]
[425257237,1781634721000,-173.0,0.00036549,30]
[425257241,1781634721000,-500.0,0.0003659,30]
[425257238,1781634721000,-339.39,0.00036565,10]
[425257242,1781634721000,-1250.0,0.00036599,2]
[425257240,1781634721000,-700.0,0.00036578,60]
[425257243,1781634721000,-1000.0,0.00036602,120]
[425257239,1781634721000,-1000.0,0.00036575,120]
[425257246,1781634721000,-500.1,0.00036609,31]
[425257245,1781634721000,-500.1,0.00036609,31]
[425257248,1781634721000,-601.21724555,0.00036609,31]
[425257258,1781634721000,-184.54670136,0.000367,30]
[425257247,1781634721000,-500.1,0.00036609,31]
[425257256,1781634721000,-1000.0,0.00036684,120]
[425257257,1781634721000,-158.25033973,0.00036685,3]
[425257250,1781634721000,-1924.2,0.00036637,10]
[425257249,1781634721000,-1000.0,0.0003663,120]
[425257254,1781634721000,-422.41917228,0.00036676,7]
[425257252,1781634721000,-204.0,0.0003665,120]
[425257251,1781634721000,-1740.64,0.00036639,10]
[425257253,1781634721000,-1000.0,0.00036657,120]
[425257259,1781634721000,-1000.0,0.000367,2]
[425257289,1781634721000,-246.847888,0.00036766,30]
[425257286,1781634721000,-779.734032,0.00036766,30]
[425257290,1781634721000,-151.0,0.00036766,30]
[425257322,1781634721000,-318.76661986,0.00036766,30]
[425257327,1781634721000,-859.813943,0.00036766,30]
[425257326,1781634721000,-859.813943,0.00036766,30]
[425257328,1781634721000,-859.813945,0.00036766,30]
[425257324,1781634721000,-182.273069,0.00036766,30]
[425257323,1781634721000,-182.273075,0.00036766,30]
[425257325,1781634721000,-859.813943,0.00036766,30]
[425257329,1781634721000,-185.321464,0.00036766,30]
[425257331,1781634721000,-185.321464,0.00036766,30]
[425257330,1781634721000,-185.321464,0.00036766,30]
[425257337,1781634721000,-500.1,0.00036793,31]
[425257334,1781634721000,-1000.0,0.00036767,120]
[425257339,1781634721000,-500.1,0.00036793,31]
[425257342,1781634721000,-476.10443138,0.00036795,2]
[425257340,1781634721000,-966.96382278,0.00036793,31]
[425257345,1781634721000,-2500.0,0.0003681,10]
[425257336,1781634721000,-278.94,0.0003678,120]
[425257343,1781634721000,-1644.32700744,0.000368,2]
[425257344,1781634721000,-2000.0,0.000368,7]
[425257335,1781634721000,-547.584378,0.0003678,120]
[425257338,1781634721000,-500.1,0.00036793,31]
[425257346,1781634721000,-1000.0,0.00036814,60]
[425257341,1781634721000,-1000.0,0.00036794,120]
[425257348,1781634721000,-1000.0,0.00036821,120]
[425257347,1781634721000,-25000.0,0.00036815,10]
[425257352,1781634721000,-3000.0,0.00036849,30]
[425257350,1781634721000,-5000.0,0.00036847,10]
[425257333,1781634721000,-185.321463,0.00036766,30]
[425257332,1781634721000,-151.0,0.00036766,30]
[425257351,1781634721000,-3000.0,0.00036849,30]
[425257316,1781634721000,-431.135306,0.00036766,30]
[425257321,1781634721000,-182.273075,0.00036766,30]
[425257306,1781634721000,-348.953007,0.00036766,30]
[425257349,1781634721000,-3948.2768248,0.00036839,2]
[425257295,1781634721000,-779.734032,0.00036766,30]
[425257305,1781634721000,-151.0,0.00036766,30]
[425257294,1781634721000,-276.683965,0.00036766,30]
[425257299,1781634721000,-276.683965,0.00036766,30]
[425257303,1781634721000,-444.015746,0.00036766,30]
[425257298,1781634721000,-246.847883,0.00036766,30]
[425257300,1781634721000,-779.734024,0.00036766,30]
[425257296,1781634721000,-151.0,0.00036766,30]
[425257297,1781634721000,-151.0,0.00036766,30]
[425257304,1781634721000,-276.683969,0.00036766,30]
[425257301,1781634721000,-151.0,0.00036766,30]
[425257291,1781634721000,-779.734032,0.00036766,30]
[425257310,1781634721000,-444.015746,0.00036766,30]
[425257302,1781634721000,-276.683965,0.00036766,30]
[425257312,1781634721000,-348.953007,0.00036766,30]
[425257314,1781634721000,-431.135298,0.00036766,30]
[425257318,1781634721000,-318.766613,0.00036766,30]
[425257317,1781634721000,-318.766613,0.00036766,30]
[425257309,1781634721000,-348.953007,0.00036766,30]
[425257308,1781634721000,-431.135298,0.00036766,30]
[425257315,1781634721000,-348.95299775,0.00036766,30]
[425257320,1781634721000,-318.766613,0.00036766,30]
[425257319,1781634721000,-182.273075,0.00036766,30]
[425257307,1781634721000,-444.015746,0.00036766,30]
[425257311,1781634721000,-431.135298,0.00036766,30]
[425257313,1781634721000,-444.015744,0.00036766,30]
[425257392,1781634722000,-5448.54,0.00037,2]
[425257402,1781634722000,-4927.52,0.00037,2]
[425257394,1781634722000,-65945.83718011,0.00037,9]
[425257391,1781634722000,-1250.0,0.00037,2]
[425257390,1781634722000,-800.0,0.00037,7]
[425257383,1781634722000,-158.25033973,0.00036959,3]
[425257384,1781634722000,-1000.0,0.00036967,60]
[425257385,1781634722000,-150.0,0.00036984,120]
[425257389,1781634722000,-800.0,0.00037,7]
[425257388,1781634722000,-4491.0,0.00037,5]
[425257386,1781634722000,-1000.0,0.00036986,120]
[425257403,1781634722000,-10403.92,0.00037,2]
[425257400,1781634722000,-371.0,0.00037,120]
[425257397,1781634722000,-2381.44265164,0.00037,20]
[425257396,1781634722000,-2870.23564042,0.00037,20]
[425257393,1781634722000,-365.0,0.00037,2]
[425257399,1781634722000,-730.0,0.00037,30]
[425257387,1781634722000,-185.34773019,0.00036998,90]
[425257401,1781634722000,-500.0,0.00037,120]
[425257398,1781634722000,-4500.0,0.00037,2]
[425257404,1781634722000,-477.74728632,0.00037,30]
[425257405,1781634722000,-477.74728632,0.00037,30]
[425257406,1781634722000,-477.74728632,0.00037,30]
[425257407,1781634722000,-477.74728632,0.00037,30]
[425257408,1781634722000,-477.74728631,0.00037,30]
[425257409,1781634722000,-477.74728631,0.00037,30]
[425257395,1781634722000,-169.07857314,0.00037,2]
[425257382,1781634722000,-1000.0,0.00036958,120]
[425257378,1781634722000,-500.0,0.00036936,120]
[425257379,1781634722000,-288.30650164,0.00036936,120]
[425257416,1781634722000,-477.74728631,0.00037,30]
[425257356,1781634722000,-1000.0,0.0003687,60]
[425257357,1781634722000,-377.0,0.00036874,2]
[425257358,1781634722000,-1000.0,0.00036876,120]
[425257355,1781634722000,-25000.0,0.00036852,10]
[425257353,1781634722000,-446.02,0.00036849,30]
[425257354,1781634722000,-1000.0,0.00036849,120]
[425257363,1781634722000,-1000.0,0.00036904,120]
[425257365,1781634722000,-1000.0,0.00036931,120]
[425257361,1781634722000,-204.0,0.000369,120]
[425257369,1781634722000,-500.0,0.00036936,120]
[425257368,1781634722000,-500.0,0.00036936,120]
[425257381,1781634722000,-25000.0,0.00036951,10]
[425257360,1781634722000,-205.0,0.0003689,30]
[425257367,1781634722000,-500.0,0.00036936,120]
[425257359,1781634722000,-1245.77,0.00036887,10]
[425257362,1781634722000,-2000.0,0.00036904,30]
[425257371,1781634722000,-500.0,0.00036936,120]
[425257370,1781634722000,-500.0,0.00036936,120]
[425257372,1781634722000,-500.0,0.00036936,120]
[425257374,1781634722000,-500.0,0.00036936,120]
[425257373,1781634722000,-500.0,0.00036936,120]
[425257377,1781634722000,-500.0,0.00036936,120]
[425257380,1781634722000,-151.5,0.00036942,7]
[425257375,1781634722000,-500.0,0.00036936,120]
[425257376,1781634722000,-500.0,0.00036936,120]
[425257364,1781634722000,-1000.0,0.00036927,60]
[425257366,1781634722000,-500.0,0.00036936,120]
[425257413,1781634722000,-477.74728631,0.00037,30]
[425257415,1781634722000,-477.74728631,0.00037,30]
[425257452,1781634722000,-151.0,0.00037,30]
[425257448,1781634722000,-400.0,0.00037,30]
[425257442,1781634722000,-500.0,0.00037,30]
[425257447,1781634722000,-165.495054,0.00037,30]
[425257444,1781634722000,-165.495048,0.00037,30]
[425257451,1781634722000,-247.728374,0.00037,30]
[425257446,1781634722000,-151.0,0.00037,30]
[425257450,1781634722000,-247.728374,0.00037,30]
[425257453,1781634722000,-247.728374,0.00037,30]
[425257456,1781634722000,-247.728376,0.00037,30]
[425257455,1781634722000,-151.0,0.00037,30]
[425257458,1781634722000,-200.799985,0.00037,30]
[425257445,1781634722000,-400.0,0.00037,30]
[425257454,1781634722000,-151.0,0.00037,30]